Cogmind - Beta 9.1 @@@ ROGUE MODE // 2019.11.04 @ 15:12:39 Player: OldPopsy Result: Destroyed by G-34 Mercenary with Small Laser Performance ------------- Evolutions (1) 500 Regions Visited (2) 400 Robots Destroyed (14) 70 Value Destroyed (424) 424 Prototype IDs (2) 40 Alien Tech Used (0) 0 Bonus (0) 0 TOTAL SCORE: 1434 Bonus ------- None Cogmind --------- Core Integrity 0/400 Matter 267/300 Energy 100/100 System Corruption 0% Temperature Cool (6) Location -9/Materials Parts ------- Power (2) Propulsion (2) Armored Wheel Utility (3) High-capacity Storage Unit Transport Network Coupler Weapon (2) Datajack Inventory (12) Peak State ------------ Power Ion Engine Propulsion Wheel Compact Wheel Utility Small Storage Unit Transport Network Coupler Weapon Assault Rifle Mini Grenade Launcher Inventory Light Assault Rifle [Rating: 8] Favorites ----------- Power Ion Engine Engine Ion Engine Propulsion Compact Wheel Wheel Compact Wheel Utility Small Storage Unit Storage Small Storage Unit Processor Transport Network Coupler Weapon Mini Grenade Launcher Ballistic Gun Assault Rifle Launcher Mini Grenade Launcher Special Melee Weapon Datajack Build | -11 -10 -9 ------- Run | Scr Mat Mat Slots Evolved 2 | . . 2 Power 1 | . . 1 Propulsion . | . . . Utility 1 | . . 1 Weapon . | . . . Parts Attached 13 | 6 2 5 Power 2 | 1 . 1 Engine 2 | 1 . 1 Core . | . . . Reactor . | . . . Propulsion 3 | 2 . 1 Treads . | . . . Leg . | . . . Wheel 3 | 2 . 1 Hover . | . . . Flight . | . . . Utility 3 | 1 1 1 Device . | . . . Storage 2 | 1 . 1 Processor 1 | . 1 . Hackware . | . . . Protection . | . . . Artifact . | . . . Weapon 5 | 2 1 2 Energy Gun . | . . . Energy Cannon . | . . . Ballistic Gun 3 | 2 . 1 Ballistic Cannon . | . . . Launcher 1 | . 1 . Special Weapon . | . . . Impact Weapon . | . . . Slashing Weapon . | . . . Piercing Weapon . | . . . Special Melee Weapon 1 | . . 1 Unidentified Prototypes . | . . . Parts Lost 7 | . . 7 Power 2 | . . 2 Propulsion 2 | . . 2 Utility . | . . . Weapon 3 | . . 3 Highest Loss Streak 5 | . . 5 Average Slot Usage (%) 55 | . 86 43 Engine 7 | . 14 4 Wheel 12 | . 28 7 Storage 11 | . 14 11 Processor 8 | . . 11 Ballistic Gun 8 | . 21 2 Launcher 5 | . 6 5 Naked Turns . | . . . Heaviest Build 33 | 12 12 33 Greatest Support 26 | 26 26 26 Greatest Overweight (x) 2 | . . 2 Average Overweight (x) . | . . . Largest Inventory Capacity 14 | 6 6 14 Average Capacity 6 | 5 6 6 Most Carried 4 | 4 2 1 Average Carried . | 1 . . Final Capacity 12 | 6 6 12 Final Carried 1 | . 1 . Class Distribution -------------------- 100% | Mutant Dominant Class ---------------- Mutant | -10/Materials Mutant | -9/Materials Resources | -11 -10 -9 ----------- Run | Scr Mat Mat Matter Collected 449 | 252 56 141 Remotely . | . . . Salvage Created 338 | . 144 194 Parts 27 | . 14 13 Haulers Intercepted 1 | . 1 . Recyclers Shooed 1 | . . 1 Parts Field Recycled . | . . . Retrieved Matter . | . . . Parts Self-Destructed . | . . . Prevented . | . . . Kills | -11 -10 -9 ------- Run | Scr Mat Mat Combat Hostiles Destroyed 12 | . 5 7 Guns 4 | . 2 2 AOE 8 | . 3 5 Classes Destroyed 5 | . 3 2 Builder 1 | . . 1 Hauler 1 | . 1 . Swarmer 3 | . 3 . Grunt 7 | . 2 5 Sentry 2 | . . 2 Best Kill Streak 8 | . 5 8 Combat Bots Only 7 | . 5 7 Max Kills in Single Turn 3 | . 3 3 Gunslinging . | . . . Exploded 3 | . 3 3 Melee . | . . . Uniques/NPCs Destroyed . | . . . Combat | -11 -10 -9 -------- Run | Scr Mat Mat Damage Taken 1062 | . 201 861 Core 474 | . 74 400 Absorbed by Shields . | . . . Core Remaining (%) 85 | 100 70 . Volleys Fired 29 | . 9 20 Largest 2 | . 2 2 Hottest 50 | . 40 50 Shots Fired 41 | . 16 25 Gun 28 | . 14 14 Cannon . | . . . Launcher 13 | . 2 11 Special . | . . . Kinetic 28 | . 14 14 Thermal . | . . . Explosive 13 | . 2 11 Electromagnetic . | . . . Robot Hit Streak 6 | . 5 6 Robot Miss Streak 3 | . 3 1 Penetration Max . | . . . Secondary Targets 1 | . 1 . Max Gunslinging Chain 1 | . 1 . Shots Hit Robots 27 | . 8 19 Core Hits 25 | . 9 16 Critical Hits . | . . . Critical Kills . | . . . Critical Parts Destroyed . | . . . Melee Attacks 1 | . . 1 Impact . | . . . Slashing . | . . . Piercing . | . . . Sneak Attacks . | . . . Combat Hostiles . | . . . Follow-up Attacks . | . . . Damage Inflicted 944 | . 259 685 Guns 192 | . 93 99 Cannons . | . . . Explosions 752 | . 166 586 Melee . | . . . Ramming . | . . . Kinetic 192 | . 93 99 Thermal . | . . . Explosive 752 | . 166 586 Electromagnetic . | . . . Impact . | . . . Slashing . | . . . Piercing . | . . . Highest Corruption . | . . . Average Corruption . | . . . Corruption Purged . | . . . Overload Shots . | . . . Overflow Damage . | . . . Projectiles . | . . . Explosions . | . . . Melee . | . . . Knockbacks . | . . . Impact . | . . . Kinetic . | . . . Secondary . | . . . Self-Inflicted Damage 63 | . . 63 Shots 4 | . . 4 Rammed . | . . . Targets Rammed . | . . . Kicked . | . . . Crushed . | . . . Highest Temperature 30 | . 30 13 Average Temperature 11 | . 17 3 Received Heat Transfer 390 | . 87 303 Siege Activations . | . . . Robots Corrupted . | . . . Combat Hostiles . | . . . Parts Fried . | . . . Impact Corruptions . | . . . Robots Melted . | . . . Combat Hostiles . | . . . Parts Melted . | . . . Heat Transferred . | . . . Parts Sabotaged . | . . . Parts Stolen . | . . . Parts Stripped . | . . . Power Chain Reactions . | . . . Missiles Intercepted . | . . . Alert | -11 -10 -9 ------- Run | Scr Mat Mat Peak Influence 289 | . 166 289 Average Influence 165 | . 81 216 Maximum Alert Level 1 | . . 1 Low Security (%) 45 | . . . Level 1 54 | . . . Level 2 . | . . . Level 3 . | . . . Level 4 . | . . . Level 5 . | . . . High Security . | . . . Max Security . | . . . Squads Dispatched 2 | . . 2 Investigation 1 | . . 1 Extermination . | . . . Reinforcement 1 | . . 1 Assault . | . . . Garrison . | . . . Intercept . | . . . Construction Impeded . | . . . Haulers Reinforced . | . . . Stealth | -11 -10 -9 --------- Run | Scr Mat Mat Distress Signals . | . . . Communications Jammed . | . . . Distress Signals . | . . . Times Spotted 23 | . 5 18 Peak Tracking Total 6 | . 3 6 Tactical Retreats 1 | . . 1 Traps | -11 -10 -9 ------- Run | Scr Mat Mat Traps Triggered 1 | . . 1 Indirectly . | . . . Trap Hack Attempts . | . . . Triggered . | . . . Disarmed . | . . . Reprogrammed . | . . . Reused . | . . . Traps Extracted . | . . . Installed . | . . . Triggered . | . . . Machines | -11 -10 -9 ---------- Run | Scr Mat Mat Machines Disabled 2 | . 1 1 Max in Single Turn 1 | . 1 1 Machines Sabotaged . | . . . Garrisons Compromised . | . . . Overloaded Fab Kills . | . . . Fab Network Shutdowns . | . . . Hacking | -11 -10 -9 --------- Run | Scr Mat Mat Machines Accessed 3 | . 2 1 Terminals 2 | . 2 . Fabricators . | . . . Repair Stations . | . . . Recycling Units 1 | . . 1 Scanalyzers . | . . . Garrison Access . | . . . Total Hacks 9 | . 4 5 Successful 4 | . 3 1 Failed 5 | . 1 4 Catastrophic . | . . . Database Lockouts . | . . . Manual . | . . . Terminals 4 | . 4 . Fabricators . | . . . Repair Stations . | . . . Recycling Units 5 | . . 5 Scanalyzers . | . . . Garrison Access . | . . . Terminal Hacks 3 | . 3 . Record 1 | . 1 . Prototype ID Bank 1 | . 1 . Hauler Manifests 1 | . 1 . Fabricator Hacks . | . . . Repair Station Hacks . | . . . Recycling Unit Hacks 1 | . . 1 Process 1 | . . 1 Scanalyzer . | . . . Garrison Access Hacks . | . . . Unauthorized Hacks . | . . . Terminals . | . . . Fabricators . | . . . Repair Stations . | . . . Recycling Units . | . . . Scanalyzers . | . . . Garrison Access . | . . . Data Cores Recovered . | . . . Used . | . . . Hacking Detections 2 | . 1 1 Full Trace Events 1 | . . 1 Feedback Events . | . . . Feedback Blocked . | . . . Robot Schematics Acquired . | . . . Robots Built . | . . . Matter . | . . . Time . | . . . Total Robot Build Rating . | . . . Part Schematics Acquired . | . . . Parts Built . | . . . Matter . | . . . Time . | . . . Total Part Build Rating . | . . . Parts Repaired . | . . . Time . | . . . Parts Recycled . | . . . Recycled Matter 2 | . . 2 Retrieved Matter . | . . . Retrieved Components . | . . . Parts Scanalyzed . | . . . Part Schematics Acquired . | . . . Parts Damaged . | . . . Bothacking | -11 -10 -9 ------------ Run | Scr Mat Mat Used RIF Installer . | . . . Robots Hacked . | . . . Non-combat . | . . . Combat . | . . . Robot Hacks Applied . | . . . Relay Couplers Released . | . . . Robots Rewired . | . . . Allies Hacked . | . . . Hacks Repelled . | . . . Allies | -11 -10 -9 -------- Run | Scr Mat Mat Total Allies . | . . . Largest Group . | . . . Highest-Rated Group . | . . . Highest-Rated Ally . | . . . Total Orders . | . . . Ally Attacks . | . . . Total Damage . | . . . Kills . | . . . Allies Corrupted . | . . . Allies Melted . | . . . Intel | -11 -10 -9 ------- Run | Scr Mat Mat Robot Analysis Total . | . . . Derelict Logs Recovered . | . . . Drone Launches . | . . . Drone Recoveries . | . . . Exploration | -11 -10 -9 ------------- Run | Scr Mat Mat Turns Passed 582 | 43 149 390 Spaces Moved 456 | 40 104 312 Core 182 | 14 . 168 Treads . | . . . Legs . | . . . Wheels 274 | 26 104 144 Hover . | . . . Flight . | . . . Fastest Speed 50 | 50 90 90 Average Speed 100 | 76 90 106 Slowest Speed 150 | 90 90 150 Overloaded Moves . | . . . Propulsion Burnouts . | . . . Robots Hopped . | . . . Cave-ins Triggered . | . . . Exploration Rate (%) 21 | 3 29 31 Regions Visited 2 Branch Regions . Pre-discovered Areas . | . . . Known Exits Taken . | . . . Unknown Exits Taken 2 | 1 1 . Scrap Searched . | . . . Spaces Dug . | . . . Terrain Destroyed 92 | . 15 77 Melee . | . . . Projectile . | . . . AOE 92 | . 15 77 Actions | -11 -10 -9 --------- Run | Scr Mat Mat Total 542 | 53 145 344 Wait 29 | . 28 1 Move 454 | 39 103 312 Hop . | . . . Pick Up 13 | 7 2 4 Fast Attach . | . . . Attach 13 | 6 2 5 Detach 1 | . 1 . Swap . | . . . Drop 2 | 1 . 1 Fire 29 | . 9 20 Melee 1 | . . 1 Ram . | . . . Kick . | . . . Crush . | . . . Escape Stasis . | . . . Rewire . | . . . Trap . | . . . Miscellaneous . | . . . Route ------- -11/Scrapyard -10/Materials -9/Materials History --------- Turn | Location | Event 27 | -11/Scrapyard | Discovered new exit (range 15) 44 | -11/Scrapyard | Entered Materials 168 | -10/Materials | Discovered new exit (range 3) 193 | -10/Materials | Entered another Materials area 193 | -9/Materials | Evolved 2 slots: Power x1, Utility x1 303 | -9/Materials | Destroyed 7 combat bots 319 | -9/Materials | Build established: Mutant 322 | -9/Materials | Lost 5 parts (1p2n2w) 553 | -9/Materials | Core integrity fell below 50% 575 | -9/Materials | Core integrity fell below 20% 583 | -9/Materials | Destroyed by G-34 Mercenary with Small Laser Last Messages --------------- 00492_ Acquired Arm. Wheel. 00511_ K-01 Serf collects debris. 00525_ K-01 Serf cleans the Electrolysis Chamber. 00532_ Connecting with Recycling Unit... 00532_ Current location identified: Materials >>Recycling(Process) Analyzing inventory... Recycling at 100% efficiency: Imp. Terrain Scanner (2) 00532_ ALERT: Suspicious activity at Recycling Unit M002. Dispatching Investigation squad. 00541_ Acquired Hcp. Storage Unit. 00543_ Dropped Sml. Storage Unit. 00545_ Acquired Datajack. 00552_ Atomic Centrifuge disabled. 00565_ Triggered Explosive Trap. 00565_ An explosion rips through the floor. 00566_ K-01 Serf cleans the Electrolysis Chamber. 00571_ Electrolysis Chamber disabled. 00576_ Jacked Y-45 Defender... Map ----- +----------------------------------------------------+ | ????????????????????????????????????? | | ????????????????????????????????????? | | ????????????????????????????????????? | | ????????????????????????????????????? | | ????????????????????????????????????? | | ????????????????????????????????????? | | ????????????????????????????????????? | | ????????????????????????????????????? | | ????????????????????????????????????? | | ????????????????????????????????????? | | ????????????????????????????????????? | | ????????????????????????????????????? | | ????????????????????????????????????? | | ???????????????????????#####????????? | | ??????????????########?? a????????? | | ??????????????# #?? ?????????? | | ??????????????# """ #?? ?????????? | | ?????????????## """ #?? a?????????? | | ?????????????# "" #??#+#????###### | | ??????????????# #??# #???? # | | ??????????????# Y #??# #???""" # | | ??????????????#### ##### #???""" # | | ####???????????# # ### "" # | | #???????##### g g # # | | #??????+ gY + # | | " #??????###### @ # !!! # | | " #??########## ##### # !!! # | | " #??# ### ########+#? !!! # | | #??#!= #?# # #? # | | #??#!= #?# + !/ #?? # | | #??#! #?# # #??# #### | | ####### ### # ! ! #???##??? | | ## """#"" ##########???????? | | + """#"Y ###########??????? | | ## """#"" ## #??????? | | ####### ### ## """ #??????? | | ??????#####/###### ## """ #??????? | | ????###### # """ #??????? | | + + #??????? | | ????###### # """ #??????? | | ?????????# ###### # """ #??????? | | ?????????# "????# # """ #??????? | | ?????????# T????# # #??????? | | ?????????# ""???# ##########??????? | | ?????????# ##???#/#???????????????? | | ?????????# #????? ????????????????? | | ?????????# #??????????????????????? | | ?????????+ +??????????????????????? | | ?????????# #??????????????????????? | | ?????????# #??????????????????????? | +----------------------------------------------------+ Best States ------------- Heat Dissipation 28 Energy Generation 10 Energy Capacity 250 Matter Stores 300 Matter Capacity 300 Sight Range 16 Terrain Scan Density 10 Evasion (%) 50 Item Schematics ----------------- None Robot Schematics ------------------ None Fabricated ------------ Nothing Alien Tech Used ----------------- None Achievements -------------- None Challenges ------------ None Game ------ Seed BattleStasisShielding Manual? 0 Play Time 00:15:24 Cumulative 16.2 hours Start 2019.11.04 @ 14:56:07 End 2019.11.04 @ 15:12:39 Sessions 1 Manual Loads 0 Difficulty Rogue Special Mode None Game No. 29 Rogue 29 Adventurer 0 Explorer 0 Win Type - Total 0 Types 0/0/0/0/0/0/0 Lore% 10 Gallery% 21 Achievement% 14 Wizard Run 0 Options --------- ASCII 0 Keyboard 0 Movement Numpad Keybinds 0 Fullscreen 1 Font 18/SmallcapsGlow Map View 76x50 Tactical HUD 1 Map Filters NONE Filters NONE Steam 1 RUN: bcc6b03f-a7fa-41c1-9fec-ebf037b0105c